fUSD/lending_fUSD_20241112
["ID","MTS","AMOUNT","RATE_DAILY","PERIOD"]
[342106505,1731447044567,-6449.76931952,0.00014,2]
[342106507,1731447044578,-5939.61552198,0.00014,2]
[342106513,1731447044625,-6779.54453407,0.00014,2]
[342106515,1731447044637,-8296.82022737,0.00014,2]
[342106517,1731447044649,-5650.79537884,0.00014,2]
[342106713,1731447046362,-3690.46625153,0.00014,2]
[342106717,1731447046375,-13770.93784062,0.00014,2]
[342106720,1731447046387,-400.0,0.00014,2]
[342106722,1731447046400,-4025.67644733,0.00014,2]
[342106724,1731447046413,-8888.09487666,0.00014,2]
[342106727,1731447046425,-373.986466,0.00014,2]
[342106731,1731447046455,-374.92548184,0.00014,2]
[342106733,1731447046468,-674.79429573,0.00014,2]
[342106740,1731447046497,-295.25514135,0.00014,2]
[342106747,1731447046530,-635.84286283,0.00014,2]
[342106751,1731447046545,-10391.97917367,0.00014,2]
[342106759,1731447046612,-596.11285387,0.00014,2]
[342106761,1731447046624,-557.8322401,0.00014,2]
[342106763,1731447046636,-706.00898571,0.00014,2]
[342106775,1731447046751,-79000.0,0.00014,2]
[342106777,1731447046764,-17047.25616546,0.00014,2]
[342106780,1731447046776,-2283.42218229,0.00014,2]
[342106782,1731447046791,-805.58226419,0.00014,2]
[342106784,1731447046803,-1701.5,0.00014,2]
[342106786,1731447046815,-11369.00907416,0.00014,2]
[342106796,1731447046903,-2272.98633876,0.00014,2]
[342106798,1731447046915,-1210.82825412,0.00014,2]
[342106805,1731447046970,-4079.84860031,0.00014,2]
[342106807,1731447046983,-383.87296915,0.00014,2]
[342106809,1731447046996,-1061.30759352,0.00014,2]
[342106812,1731447047009,-677.10089494,0.00014,2]
[342106814,1731447047021,-1042.4337992,0.00014,2]
[342106816,1731447047033,-4545.31242003,0.00014,2]
[342106818,1731447047053,-438.217861,0.00014,2]
[342106822,1731447047080,-873.74712415,0.00014,2]
[342106824,1731447047092,-633.18255,0.00014,2]
[342106826,1731447047105,-5807.1874379,0.00014,2]
[342106828,1731447047116,-266.13681897,0.00014,2]
[342106831,1731447047132,-4621.61461392,0.00014,2]
[342106834,1731447047149,-134525.51177627,0.00014,2]
[342106836,1731447047160,-2082.9365688,0.00014,2]
[342106838,1731447047171,-409.14193754,0.00014,2]
[342106841,1731447047182,-1778.12,0.00014,2]
[342106843,1731447047193,-431.22961645,0.00014,2]
[342106845,1731447047209,-1529.65936875,0.00014,2]
[342106847,1731447047220,-1415.44956061,0.00014,2]
[342106850,1731447047232,-550.31858725,0.00014,2]
[342106852,1731447047244,-443.6911592,0.00014,2]
[342106854,1731447047255,-4283.74000465,0.00014,2]
[342106856,1731447047267,-6172.81784563,0.00014,2]
[342106859,1731447047279,-481.61185414,0.00014,2]
[342106861,1731447047293,-618.3903605,0.00014,2]
[342106863,1731447047305,-2479.97084612,0.00014,2]
[342106870,1731447047360,-1159.0,0.0001315,2]
[342106872,1731447047369,-1261.86061955,0.00014,2]
[342107321,1731447211393,-1000.0,0.000129,2]
[342107322,1731447285117,722.97,0.00011282,2]
[342107323,1731447365082,1450.0,0.00012,2]
[342107331,1731447652875,4000.0,0.00021,30]
[342107332,1731447719489,6897.82816048,0.000236,120]
[342107334,1731447949713,4000.0,0.000236,120]
[342107335,1731447976345,686.82,0.00010808,2]
[342107336,1731448032336,-509.87,0.00012756,2]
[342107337,1731448032356,-250.0,0.00012849,2]
[342107338,1731448032376,-1000.0,0.00012889,2]
[342107339,1731448032396,-3240.0935,0.000129,2]
[342107340,1731448032419,-648.18,0.00012946,2]
[342107341,1731448032439,-250.0,0.00012946,2]
[342107342,1731448032458,-262.9,0.00012995,2]
[342107343,1731448032478,-1375.0,0.00012999,2]
[342107344,1731448032498,-165.08,0.00013005,2]
[342107345,1731448032518,-686.82,0.00013072,2]
[342107346,1731448032542,-150.0,0.00013112,2]
[342107347,1731448032568,-250.0,0.00013113,2]
[342107348,1731448032588,-300.0,0.00013248,2]
[342107349,1731448032609,-1262.992,0.00013249,2]
[342107350,1731448032632,-165.077,0.00013249,2]
[342107351,1731448032652,-745.33814552,0.00013249,2]
[342107352,1731448032672,-150.0,0.00013249,2]
[342107353,1731448032694,-5930.0,0.0001325,2]
[342107354,1731448032715,-150.0,0.0001325,2]
[342107355,1731448032735,-453.0,0.0001325,2]
[342107356,1731448032754,-631.0,0.0001325,2]
[342107357,1731448032775,-1254.0,0.0001325,2]
[342107358,1731448032794,-1156.998,0.0001325,2]
[342107359,1731448032817,-150.0,0.0001325,2]
[342107360,1731448032838,-628.0,0.0001325,2]
[342107361,1731448032859,-1991.0,0.0001325,2]
[342107362,1731448032881,-1091.0,0.0001325,2]
[342107363,1731448032901,-559.0,0.0001325,2]
[342107364,1731448032922,-1923.0,0.0001325,2]
[342107365,1731448032945,-1259.0,0.0001325,2]
[342107366,1731448032967,-814.0,0.0001325,2]
[342107367,1731448032988,-3745.0,0.0001325,2]
[342107368,1731448033009,-922.0,0.0001325,2]
[342107369,1731448033030,-3487.0,0.0001325,2]
[342107370,1731448033051,-322.44,0.00013378,2]
[342107371,1731448033081,-158.107,0.0001343,2]
[342107372,1731448033102,-1355.0,0.00013584,2]
[342107373,1731448033126,-215.437985,0.00013698,2]
[342107374,1731448033148,-729.449609,0.00013698,2]
[342107375,1731448033168,-729.449609,0.00013698,2]
[342107376,1731448033188,-729.449609,0.00013698,2]
[342107377,1731448033211,-729.449609,0.00013698,2]
[342107378,1731448033231,-729.449609,0.00013698,2]
[342107379,1731448033252,-729.449609,0.00013698,2]
[342107380,1731448033272,-729.449609,0.00013698,2]
[342107381,1731448033294,-729.449609,0.00013698,2]
[342107382,1731448033319,-729.449609,0.00013698,2]
[342107383,1731448033338,-729.449609,0.00013698,2]
[342107384,1731448033357,-729.449609,0.00013698,2]
[342107385,1731448033377,-729.449609,0.00013698,2]
[342107386,1731448033396,-729.449609,0.00013698,2]
[342107387,1731448033416,-729.449609,0.00013698,2]
[342107388,1731448033438,-729.449609,0.00013698,2]
[342107389,1731448033460,-729.449609,0.00013698,2]
[342107390,1731448033480,-729.449609,0.00013698,2]
[342107391,1731448033500,-729.449609,0.00013698,2]
[342107392,1731448033522,-729.449609,0.00013698,2]
[342107393,1731448033546,-729.449609,0.00013698,2]
[342107394,1731448033570,-729.449609,0.00013698,2]
[342107395,1731448033591,-729.449609,0.00013698,2]
[342107396,1731448033613,-559.97195245,0.00013698,2]
[342107417,1731448232291,-150.0,0.00013178,2]
[342107418,1731448232301,-1500.0,0.00013229,2]
[342107419,1731448232311,-150.0,0.0001325,2]
[342107420,1731448232320,-278.916,0.0001325,2]
[342107421,1731448232329,-155.0,0.0001325,2]
[342107422,1731448232338,-5930.0,0.0001325,2]
[342107423,1731448232348,-150.0,0.0001325,2]
[342107424,1731448232358,-157.122,0.0001325,2]
[342107425,1731448232367,-150.0,0.000134,2]
[342107426,1731448232376,-200.0,0.00013699,2]
[342107427,1731448232385,-300.0,0.00013699,2]
[342107428,1731448232395,-433.11,0.000137,2]
[342107429,1731448232404,-150.0,0.000137,2]
[342107430,1731448232414,-432.75,0.000137,2]
[342107431,1731448232423,-13940.21226524,0.00013726,2]
[342107432,1731448232434,-1595.19773476,0.00013726,2]
[342107433,1731448232444,-150.0,0.000138,2]
[342107434,1731448232454,-433.11,0.000138,2]
[342107435,1731448232463,-150.0,0.000138,2]
[342107436,1731448232472,-433.11,0.000138,2]
[342107437,1731448232482,-169.38,0.00013818,2]
[342107438,1731448232491,-2416.3630653,0.0001386,2]
[342107439,1731448232602,-583.6369347,0.0001386,2]
[342107440,1731448232612,-458.12353607,0.00013876,2]
[342107441,1731448232624,-1641.87646393,0.00013876,2]
[342107442,1731448232634,-733.28423105,0.00013876,2]
[342107443,1731448232646,-66.71576895,0.00013876,2]
[342107444,1731448232656,-1600.0,0.00013876,2]
[342107445,1731448232665,-150.0,0.00013899,2]
[342107446,1731448232675,-177.92948392,0.000139,2]
[342107447,1731448232684,-15205.1547,0.000139,2]
[342107448,1731448232694,-230.54004713,0.000139,2]
[342107449,1731448232706,-6023.72737881,0.000139,2]
[342107450,1731448232718,-6674.23832769,0.000139,2]
[342107451,1731448232729,-3672.96078385,0.000139,2]
[342107452,1731448232740,-1784.09746252,0.000139,2]
[342107453,1731448232749,-4460.38605761,0.000139,2]
[342107454,1731448232761,-539.61394239,0.000139,2]
[342107455,1731448232770,-1000.0,0.000139,2]
[342107456,1731448232779,-75.41765859,0.000139,2]
[342107457,1731448232790,-388.88750137,0.000139,2]
[342107458,1731448232802,-535.69484004,0.000139,2]
[342107459,1731448232811,-150.0,0.000139,2]
[342107460,1731448232820,-187.09,0.000139,2]
[342107461,1731448232830,-169.85,0.000139,2]
[342107462,1731448232839,-1233.29793996,0.0001392,2]
[342107463,1731448232945,-397.92779334,0.0001392,2]
[342107464,1731448232982,-670.13704173,0.0001392,2]
[342107465,1731448232994,-519.86839141,0.0001392,2]
[342107466,1731448233005,-178.76883356,0.0001392,2]
[342107467,1731448233015,-500.0,0.00013999,2]
[342107468,1731448233024,-500.0,0.00013999,2]
[342107469,1731448233034,-500.0,0.00013999,2]
[342107470,1731448233043,-500.0,0.00013999,2]
[342107471,1731448233053,-242.49222383,0.00013999,2]
[342107472,1731448233112,-257.50777617,0.00013999,2]
[342107473,1731448233122,-500.0,0.00013999,2]
[342107474,1731448233131,-500.0,0.00013999,2]
[342107475,1731448233141,-500.0,0.00013999,2]
[342107476,1731448233150,-300.0,0.00013999,2]
[342107477,1731448233159,-500.0,0.00013999,2]
[342107478,1731448233169,-500.0,0.00013999,2]
[342107479,1731448233178,-589.29824343,0.00013999,2]
[342107480,1731448233187,-500.0,0.00013999,2]
[342107481,1731448233198,-500.0,0.00013999,2]
[342107482,1731448233208,-376.73966376,0.00013999,2]
[342107485,1731448237715,-279.892,0.0001325,2]
[342107486,1731448237727,-123.26033624,0.00013999,2]
[342107487,1731448237736,-4.85626236,0.00013999,2]
[342107488,1731448237749,-495.14373764,0.00013999,2]
[342107489,1731448237758,-96.84766376,0.00013999,2]
[342107490,1731448237891,-403.15233624,0.00013999,2]
[342107491,1731448237900,-1593.54180149,0.00014,2]
[342107492,1731448237912,-2848.82252227,0.00014,2]
[342107513,1731448238415,-9356.34688344,0.00014,2]
[342107516,1731448238431,-4240.0,0.00014,2]
[342107520,1731448238458,-3389.64419436,0.00014,2]
[342107529,1731448238532,-3891.27033378,0.00014,2]
[342107558,1731448240996,-150.0,0.0001325,2]
[342107559,1731448241006,-193.5970999,0.00014,2]
[342107560,1731448241080,-20000.0,0.00014,2]
[342107561,1731448241092,-7733.736811,0.00014,2]
[342107569,1731448243132,-619.01,0.00014,2]
[342107570,1731448243143,-773.07534942,0.00014,2]
[342107571,1731448243155,-16397.21722342,0.00014,2]
[342107572,1731448243248,-23106.0,0.00014,2]
[342107573,1731448243259,-5979.90760394,0.00014,2]
[342107574,1731448243325,-7915.39482002,0.00014,2]
[342107577,1731448245570,-1987.92585494,0.00014,2]
[342107578,1731448245653,-2124.71910956,0.00014,2]
[342107579,1731448245664,-552.2613354,0.00014,2]
[342107580,1731448245880,-286.60098479,0.00014,2]
[342107581,1731448245892,-701.79410363,0.00014,2]
[342107583,1731448427433,-900.0,0.00017,18]
[342107596,1731448457296,-600.0,0.00018,19]
[342107597,1731448653040,-300.0,0.00018,19]
[342107599,1731448827465,618.13,0.00010905,2]
[342107600,1731449196972,1450.0,0.00012,2]
[342107601,1731449213503,150.41,0.0001012,2]
[342107602,1731449254152,-300.0,0.00012421,2]
[342107603,1731449254173,-11115.79714879,0.00012422,2]
[342107604,1731449254193,-1111.12,0.00012489,2]
[342107605,1731449254214,-250.0,0.00012523,2]
[342107606,1731449254234,-167.51690814,0.00012538,2]
[342107607,1731449254254,-297.87,0.00012638,2]
[342107608,1731449254276,-358.13,0.0001265,2]
[342107609,1731449254296,-200.0,0.00012661,2]
[342107610,1731449254319,-150.0,0.00012721,2]
[342107611,1731449254340,-429.95,0.00012721,2]
[342107612,1731449254361,-250.0,0.00012876,2]
[342107613,1731449254383,-150.0,0.00012877,2]
[342107614,1731449254403,-250.0,0.00012968,2]
[342107615,1731449254424,-150.0,0.00013039,2]
[342107616,1731449254445,-453.0,0.0001304,2]
[342107617,1731449254465,-1254.0,0.0001304,2]
[342107618,1731449254485,-628.0,0.0001304,2]
[342107619,1731449254506,-1991.0,0.0001304,2]
[342107620,1731449254527,-1923.0,0.0001304,2]
[342107621,1731449254549,-559.0,0.0001304,2]
[342107622,1731449254572,-3745.0,0.0001304,2]
[342107623,1731449254593,-814.0,0.0001304,2]
[342107624,1731449254614,-1259.0,0.0001304,2]
[342107625,1731449254638,-922.0,0.0001304,2]
[342107626,1731449254660,-3487.0,0.0001304,2]
[342107627,1731449254680,-1091.0,0.0001304,2]
[342107628,1731449254701,-1000.0,0.00013076,2]
[342107629,1731449254725,-281.45,0.00013077,2]
[342107630,1731449254747,-1000.0,0.00013106,2]
[342107631,1731449254769,-165.08,0.00013126,2]
[342107632,1731449254791,-1500.0,0.00013149,2]
[342107633,1731449254813,-2178.6915,0.0001315,2]
[342107634,1731449254836,-618.13,0.00013169,2]
[342107635,1731449254857,-169.38,0.00013176,2]
[342107636,1731449254877,-1001.11,0.00013229,2]
[342107637,1731449254898,-158.34,0.00013231,2]
[342107638,1731449254923,-442.41,0.00013231,2]
[342107639,1731449254945,-250.0,0.0001325,2]
[342107640,1731449254968,-150.0,0.0001325,2]
[342107641,1731449254990,-150.0,0.0001325,2]
[342107642,1731449255015,-150.0,0.0001325,2]
[342107643,1731449255035,-150.0,0.0001325,2]
[342107644,1731449255056,-5930.0,0.0001325,2]
[342107645,1731449255080,-150.0,0.0001325,2]
[342107646,1731449255102,-402.85,0.00013543,2]
[342107647,1731449255124,-420.0,0.0001363,2]
[342107648,1731449255143,-200.0,0.00013699,2]
[342107649,1731449255165,-375.0,0.000137,2]
[342107650,1731449255186,-154.54,0.0001386,2]
[342107651,1731449255206,-150.0,0.0001387,2]
[342107652,1731449255228,-1500.0,0.00013876,2]
[342107653,1731449255249,-161.84805598,0.00013899,2]
[342107654,1731449255271,-5000.0,0.000139,2]
[342107655,1731449255292,-1267.5635,0.000139,2]
[342107656,1731449255315,-640.8334,0.000139,2]
[342107657,1731449255335,-1000.0,0.000139,2]
[342107658,1731449255356,-177.9294839,0.000139,2]
[342107659,1731449255380,-682.67544733,0.000139,2]
[342107660,1731449255709,-342.05050128,0.00013973,2]
[342107661,1731449255740,-220.77510781,0.00013973,2]
[342107662,1731449255760,-314.91744435,0.00013973,2]
[342107663,1731449255781,-786.96,0.0001399,3]
[342107664,1731449255802,-150.0,0.00013998,2]
[342107665,1731449255825,-150.0,0.00013998,2]
[342107666,1731449255845,-875.0,0.00013999,2]
[342107667,1731449255865,-801.33,0.00013999,2]
[342107668,1731449255888,-212110.54681058,0.00013999,2]
[342107686,1731449431804,-2000.0,0.0001265,2]
[342107687,1731449431814,-300.0,0.0001265,2]
[342107688,1731449431823,-3581.006,0.0001335,2]
[342107689,1731449431832,-150.0,0.0001335,2]
[342107690,1731449431842,-1090.0,0.0001335,2]
[342107691,1731449431851,-250.0,0.00013441,2]
[342107692,1731449431861,-3336.76186055,0.00013516,2]
[342107698,1731449435224,-2200.0,0.00013516,2]
[342107706,1731449437820,-3083.66,0.00013446,2]
[342107707,1731449437830,-10666.64614883,0.00013516,2]
[342107708,1731449437915,-201.08199062,0.00013516,2]
[342107709,1731449437924,-155.77,0.00013548,2]
[342107710,1731449437933,-754.29199245,0.00013549,2]
[342107711,1731449438073,-941.18345201,0.00013549,2]
[342107712,1731449438084,-5007.11991173,0.00013549,2]
[342107713,1731449438095,-797.50464381,0.00013549,2]
[342107714,1731449438104,-281.48,0.00013608,2]
[342107715,1731449438113,-295.34,0.00013618,2]
[342107716,1731449438123,-817.365141,0.00013899,2]
[342107717,1731449438192,-2000.0813069,0.00013899,2]
[342107718,1731449438243,-2182.5535521,0.00013899,2]
[342107719,1731449438252,-713.6177,0.00013899,2]
[342107720,1731449438261,-614.40790257,0.000139,2]
[342107721,1731449438270,-150.0,0.00013915,2]
[342107722,1731449438280,-150.0,0.00013998,2]
[342107723,1731449438289,-194699.63343535,0.00013999,2]
[342107725,1731449438300,-255.53745705,0.00013999,2]
[342107726,1731449438311,-66453.86132581,0.00013999,2]
[342107769,1731449438889,-30737.3105896,0.00013999,2]
[342107975,1731449440934,-247.51,0.00013381,2]
[342107977,1731449440943,-134.63470905,0.00013999,2]
[342107983,1731449440994,-1811.94517728,0.00013999,2]
[342108181,1731449442811,-460.288,0.00013999,2]
[342108183,1731449442823,-3185.52,0.00013999,2]
[342108186,1731449442838,-5281.9,0.00013999,2]
[342108210,1731449443061,-8377.22571773,0.00013999,2]
[342108216,1731449443111,-11712.29373776,0.00013999,2]
[342108219,1731449443126,-621.12740406,0.00013999,2]
[342108221,1731449443137,-88353.96338225,0.00013999,2]
[342108223,1731449443148,-175009.72206399,0.00013999,2]
[342108236,1731449443292,-344.0490867,0.00013999,2]
[342108473,1731449445720,-21965.0,0.00013999,2]
[342108482,1731449445746,-876.49,0.00013999,2]
[342108486,1731449445759,-317.77473976,0.00013999,2]
[342108499,1731449445804,-38242.2508465,0.00013999,2]
[342108502,1731449445813,-11676.72748357,0.00013999,2]
[342108505,1731449445824,-21216.83982163,0.00014,2]
[342108517,1731449445882,-529.347,0.00014,2]
[342108554,1731449446079,-1435.50158,0.00014,2]
[342108557,1731449446095,-1752.0,0.00014,2]
[342108563,1731449446122,-1666.5108848,0.00014,2]
[342108565,1731449446133,-601.05956758,0.00014,2]
[342108567,1731449446145,-29813.36222905,0.00014,2]
[342108580,1731449446314,-2640.0,0.00014,2]
[342108581,1731449446326,-7115.1,0.00014,2]
[342110390,1731449542521,748.11,0.00011622,2]
[342110405,1731450225358,710.7,0.00010793,2]
[342110426,1731450529883,19289.3,0.00012206,2]
[342110427,1731450529905,4600.7,0.00012206,2]
[342110436,1731450553135,-4846.59289456,0.0001238,2]
[342110437,1731450553155,-158.66,0.00012419,2]
[342110438,1731450553180,-1964.62678972,0.00012527,2]
[342110439,1731450553202,-1000.0,0.00012596,2]
[342110440,1731450553222,-300.0,0.00012617,2]
[342110441,1731450553242,-2540.13,0.00012618,2]
[342110442,1731450553263,-150.0,0.00012625,2]
[342110443,1731450553285,-39857.86287572,0.00012626,2]
[342110449,1731450562013,-7020.72147,0.00012626,2]
[342110450,1731450564371,-6501.60895399,0.00012626,2]
[342110451,1731450565161,-41395.85954,0.00012626,2]
[342110463,1731450610781,1500.0,0.00012221,2]
[342110464,1731450628482,200.0,0.00012232,2]
[342110468,1731450632024,-150.0,0.00012625,2]
[342110469,1731450632034,-649.236409,0.00012626,2]
[342110470,1731450632087,-30911.93245518,0.00012626,2]
[342110484,1731450637889,-1552.6965974,0.00012626,2]
[342110485,1731450638001,-145439.50169871,0.00012626,2]
[342110486,1731450638011,-250.0,0.00012627,2]
[342110487,1731450638021,-198.01,0.00012674,2]
[342110488,1731450638031,-1089.0,0.00012741,2]
[342110489,1731450638040,-250.0,0.00012789,2]
[342110490,1731450638050,-1964.62678969,0.00012791,2]
[342110491,1731450638059,-179.06,0.00012824,2]
[342110492,1731450638069,-1239.99,0.00012857,2]
[342110493,1731450638078,-574.84,0.00012859,2]
[342110494,1731450638087,-150.0,0.00012877,2]
[342110495,1731450638096,-189.99,0.00012893,2]
[342110496,1731450638106,-430.19319665,0.000129,2]
[342110497,1731450638115,-161.84805596,0.000129,2]
[342110498,1731450638125,-169.38,0.00012915,2]
[342110499,1731450638134,-31368.66155255,0.00012998,2]
[342110500,1731450638143,-550972.9166772,0.00013,2]
[342110501,1731450638152,-8924.37811268,0.00013,2]
[342110502,1731450638161,-622649.71406568,0.00013,2]
[342110503,1731450638281,-1641.15051435,0.00013,2]
[342110504,1731450638296,-11419.66524981,0.00013,2]
[342110511,1731450639936,-7921.49488048,0.00013,2]
[342110512,1731450639947,-3889.68915168,0.00013,2]
[342110519,1731450643201,-282.97023346,0.00013,2]
[342110520,1731450643213,-16081.89230979,0.00013,2]
[342110521,1731450643242,-3789.32086806,0.00013,2]
[342110532,1731450646883,-492.08917388,0.00013,2]
[342110533,1731450647025,-2812.82124526,0.00013,2]
[342110534,1731450647037,-439.87020412,0.00013,2]
[342110535,1731450647050,-537.3981158,0.00013,2]
[342110536,1731450647343,-2540.15813477,0.00013,2]
[342110537,1731450647361,-2442.4723906,0.00013,2]
[342110538,1731450940256,675.16,0.00010886,2]
[342110539,1731451028141,1450.0,0.00012,2]
[342110540,1731451075466,6548.9203,0.00021,30]
[342110542,1731451599915,163.38905925,0.00012253,2]
[342110551,1731451724830,2000.0,0.00012253,2]
[342110554,1731451753105,-200.0,0.00012327,2]
[342110555,1731451753126,-1000.0,0.00012354,2]
[342110556,1731451753147,-1500.0,0.00012399,2]
[342110557,1731451753168,-250.0,0.00012413,2]
[342110558,1731451753188,-179.06,0.00012467,2]
[342110559,1731451753209,-132.651166,0.00012476,2]
[342110569,1731451832279,-535.678834,0.00012476,2]
[342110570,1731451832288,-1126.42179047,0.00012501,2]
[342110571,1731451832299,-1597.45820953,0.00012501,2]
[342110572,1731451832308,-25.78179047,0.00012539,2]
[342110573,1731451832319,-224.21820953,0.00012539,2]
[342110574,1731451832328,-150.0,0.00012548,2]
[342110575,1731451832337,-250.0,0.00012549,2]
[342110576,1731451832346,-346.52,0.00012725,2]
[342110577,1731451832355,-300.0,0.00012771,2]
[342110578,1731451832365,-225.44,0.00012772,2]
[342110579,1731451832374,-340.12,0.00012863,2]
[342110580,1731451832383,-3000.0,0.0001287,2]
[342110581,1731451832392,-150.0,0.00012877,2]
[342110582,1731451832401,-150.0,0.00012899,2]
[342110583,1731451832410,-17341.8771,0.000129,2]
[342110584,1731451832419,-5982.0838,0.000129,2]
[342110585,1731451832429,-2336.0344,0.000129,2]
[342110586,1731451832438,-1000.0,0.000129,2]
[342110588,1731451832447,-1819.23038632,0.000129,2]
[342110590,1731451832457,-73842.43754415,0.00013,2]
[342110591,1731451832507,-917.61691343,0.00013,2]
[342110592,1731451832518,-685.82489961,0.00013,2]
[342110593,1731451832612,-471.55435349,0.00013,2]
[342110594,1731451832623,-1216.48218781,0.00013,2]
[342110595,1731451832651,-450.037073,0.00013,2]
[342110596,1731451832662,-1611.31619998,0.00013,2]
[342110611,1731451838169,-3975.0,0.00013,2]
[342110612,1731451838180,-4079.5227,0.00013,2]
[342110613,1731451838191,-5859.98649765,0.00013,2]
[342110614,1731451838446,-1940.0,0.00013,2]
[342110643,1731451840094,-4101.42082167,0.00013,2]
[342110644,1731451840105,-1659.24901195,0.00013,2]
[342110645,1731451840294,-397.05,0.00013,2]
[342110646,1731451840305,-657.65499999,0.00013,2]
[342110647,1731451840316,-4419.1939459,0.00013,2]
[342110648,1731451840327,-290.38386113,0.00013,2]
[342110649,1731451840338,-777.11735483,0.00013,2]
[342110650,1731451840361,-30924.63588806,0.00013,2]
[342110755,1731451843241,-266.2,0.00013,2]
[342110756,1731451843253,-5585.16742804,0.00013,2]
[342110757,1731451843264,-630.15538521,0.00013,2]
[342110758,1731451843305,-540.086632,0.00013,2]
[342110759,1731451843316,-21385.5911,0.00013,2]
[342110760,1731451843367,-50499.48597856,0.00013,2]
[342110761,1731451843377,-13002.984,0.00013,2]
[342110762,1731451843386,-1819.23038623,0.00013122,2]
[342110763,1731451843395,-675.16,0.00013149,2]
[342110764,1731451843405,-1819.23038623,0.00013344,2]
[342110765,1731451843414,-419.087,0.00013351,2]
[342110766,1731451843423,-563.0,0.00013351,2]
[342110767,1731451843432,-1254.0,0.00013351,2]
[342110768,1731451843441,-1991.0,0.00013351,2]
[342110769,1731451843450,-628.0,0.00013351,2]
[342110771,1731451843459,-1923.0,0.00013351,2]
[342110773,1731451843468,-175.38,0.00013351,2]
[342110775,1731451843477,-814.0,0.00013351,2]
[342110777,1731451843486,-3745.0,0.00013351,2]
[342110779,1731451843495,-1259.0,0.00013351,2]
[342110781,1731451843504,-3487.0,0.00013351,2]
[342110783,1731451843514,-922.0,0.00013351,2]
[342110784,1731451843523,-150.0,0.00013351,2]
[342110786,1731451843532,-150.0,0.00013351,2]
[342110788,1731451843542,-150.0,0.00013351,2]
[342110790,1731451843551,-150.0,0.00013351,2]
[342110792,1731451843561,-225.44,0.0001341,2]
[342110794,1731451843570,-1000.0,0.000135,2]
[342110796,1731451843579,-150.0,0.00013547,2]
[342110798,1731451843588,-1000.82690005,0.00013567,2]
[342110819,1731451843758,-818.40348618,0.00013567,2]
[342110821,1731451843767,-167.0,0.00013598,2]
[342110823,1731451843776,-200.0,0.00013699,2]
[342110825,1731451843785,-375.0,0.000137,2]
[342110827,1731451843795,-1010.0,0.000137,2]
[342110829,1731451843805,-1819.23038623,0.00013789,2]
[342110831,1731451843816,-1000.0,0.00013898,2]
[342110833,1731451843825,-5000.0,0.000139,2]
[342110835,1731451843833,-177.9294839,0.000139,2]
[342110837,1731451843843,-1559.8,0.00013998,2]
[342110839,1731451843852,-1073.3378639,0.00013999,2]
[342110841,1731451843861,-500.0,0.00013999,2]
[342110843,1731451843870,-500.0,0.00013999,2]
[342110845,1731451843879,-500.0,0.00013999,2]
[342110847,1731451843888,-572.5087704,0.00013999,2]
[342110849,1731451843897,-500.0,0.00013999,2]
[342110851,1731451843906,-500.0,0.00013999,2]
[342110853,1731451843915,-500.0,0.00013999,2]
[342110855,1731451843924,-500.0,0.00013999,2]
[342110857,1731451843933,-500.0,0.00013999,2]
[342110859,1731451843943,-500.0,0.00013999,2]
[342110861,1731451843952,-400.0,0.00013999,2]
[342110863,1731451843961,-767.94,0.00013999,2]
[342110865,1731451843970,-18522.2107943,0.00014,2]
[342110871,1731451844009,-10169.93648898,0.00014,2]